[Event "FIDE WCCC Open-12 2024"]
[Site "Montesilvano"]
[Date "2024.11.19"]
[Round "5.7"]
[White "Bocquenet-Drouode, Hugo"]
[Black "Aansh Nandan Nerurkar"]
[Result "1/2-1/2"]
[ECO "B51"]
[WhiteElo "2002"]
[BlackElo "2247"]
[Annotator "RC"]
[PlyCount "141"]
[EventDate "2024.11.18"]
[EventType "swiss"]
[EventCountry "ITA"]
[SourceTitle "playchess.com"]
[Source "ChessBase"]
[SourceQuality "1"]
[TimeControl "5400+30"]

1. e4 {[%emt 0:00:03]} c5 {[%emt 0:00:03]} 2. Nf3 {[%emt 0:00:04]} d6 {[%emt 0:00:06]} 3. Bb5+ {[%emt 0:00:05]} Nd7 {[%emt 0:00:25]} 4. Ba4 {[%emt 0:00:07]} Ngf6 {[%emt 0:00:20]} 5. O-O {[%emt 0:00:20]} g6 {[%emt 0:05:44]} 6. d3 {[%emt 0:00:32]} Bg7 {[%emt 0:00:06]} 7. c4 {[%emt 0:00:12]} O-O {[%emt 0:00:10]} 8. h3 {[%emt 0:00:31]} a6 {[%emt 0:01:22]} 9. Nc3 {[%emt 0:00:15]} Rb8 {[%emt 0:02:40]} 10. Be3 {[%emt 0:02:13]} Ne8 {[%emt 0:02:26]} 11. d4 {[%emt 0:01:37]} cxd4 {[%emt 0:00:08]} 12. Bxd4 {[%emt 0:00:30]} Nc7 {[%emt 0:00:33]} 13. Ba7 {[%emt 0:07:52]} Ra8 {[%emt 0:01:15]} 14. Bd4 {[%emt 0:00:07]} Bxd4 {[%emt 0:01:55]} 15. Nxd4 {[%emt 0:00:37]} Ne5 {[%emt 0:01:45]} 16. Qe2 {[%emt 0:04:25]} Bd7 {[%emt 0:06:06]} 17. Bxd7 {[%emt 0:00:48]} Qxd7 {[%emt 0:00:40]} 18. a4 {[%emt 0:02:54]} Rac8 {[%emt 0:05:45]} 19. b3 {[%emt 0:03:56]} Ne6 {[%emt 0:01:00]} 20. Rad1 {[%emt 0:02:32]} Nc6 {[%emt 0:01:58]} 21. Nxe6 {[%emt 0:03:38]} Qxe6 {[%emt 0:00:21]} 22. f4 {[%emt 0:03:47]} f5 {[%emt 0:02:07]} 23. Rfe1 {[%emt 0:05:25]} fxe4 {[%emt 0:00:02]} 24. Qxe4 {[%emt 0:00:09]} Qxe4 {[%emt 0:00:05]} 25. Rxe4 {[%emt 0:00:07]} Kf7 {[%emt 0:00:48]} 26. g3 {[%emt 0:07:04]} Rfe8 {[%emt 0:00:43]} 27. Re2 {[%emt 0:02:25]} h6 {[%emt 0:01:55]} 28. h4 {[%emt 0:05:41]} Na5 {[%emt 0:01:36]} 29. Rb2 {[%emt 0:02:37]} Red8 {[%emt 0:03:16]} 30. Ne4 {[%emt 0:11:18]} b6 {[%emt 0:02:23]} 31. Rd3 {[%emt 0:04:52]} Nb7 {[%emt 0:01:30]} 32. Re2 {[%emt 0:01:12]} e6 {[%emt 0:02:06]} 33. Red2 {[%emt 0:03:20]} Ke7 {[%emt 0:01:10]} 34. Re3 {[%emt 0:04:54]} Rd7 {[%emt 0:07:28]} 35. Nc3 {[%emt 0:01:01]} Kf7 {[%emt 0:00:06]} 36. Rde2 {[%emt 0:00:53]} Nd8 {[%emt 0:00:10]} 37. Rd2 {[%emt 0:09:44]} Rc6 {[%emt 0:00:50]} 38. Ne2 {[%emt 0:02:00]} Rc5 {[%emt 0:01:38]} 39. Nd4 {[%emt 0:01:00]} Kf6 {[%emt 0:02:44]} 40. Nf3 {[%emt 0:01:17]} Nc6 {[%emt 0:01:34]} 41. Nd4 {[%emt 0:02:40]} Nxd4 {[%emt 0:00:09]} 42. Rxd4 {[%emt 0:00:04]} d5 {[%emt 0:01:05]} 43. Kf2 {[%emt 0:00:44]} Rdc7 {[%emt 0:00:35]} 44. cxd5 {[%emt 0:00:06]} Rxd5 {[%emt 0:02:22]} 45. Rxd5 {[%emt 0:00:22]} exd5 {[%emt 0:00:01]} 46. Rd3 {[%emt 0:00:41]} Ke6 {[%emt 0:03:08]} 47. Ke3 {[%emt 0:00:30]} Rc1 {[%emt 0:00:29]} 48. Kf3 {[%emt 0:02:36]} h5 {[%emt 0:02:28]} 49. Ke3 {[%emt 0:00:57]} a5 {[%emt 0:02:20]} 50. Kd2 {[%emt 0:00:46]} Rg1 {[%emt 0:00:43]} 51. Kc3 {[%emt 0:00:59]} Rc1+ {[%emt 0:03:02]} 52. Kd2 {[%emt 0:00:08]} Rb1 {[%emt 0:00:30]} 53. Kc2 {[%emt 0:00:16]} Rg1 {[%emt 0:00:08]} 54. Kc3 {[%emt 0:00:31]} Kd6 {[%emt 0:00:22]} 55. Kd4 {[%emt 0:00:30]} Rf1 {[%emt 0:05:27]} 56. Re3 {[%emt 0:01:57]} Rd1+ {[%emt 0:05:37]} 57. Rd3 {[%emt 0:00:04]} Rb1 {[%emt 0:00:46]} 58. Re3 {[%emt 0:01:01]} Rg1 {[%emt 0:00:24]} 59. Re5 {[%emt 0:01:43]} Rxg3 {[%emt 0:00:47]} 60. Rxd5+ {[%emt 0:00:03]} Kc6 {[%emt 0:00:06]} 61. Rg5 {[%emt 0:00:43]} Rxg5 {[%emt 0:00:01]} 62. fxg5 {[%emt 0:00:13]} Kd6 {[%emt 0:00:12]} 63. Kc4 {[%emt 0:00:08]} Kc6 {[%emt 0:01:10]} 64. b4 {[%emt 0:00:06]} axb4 {[%emt 0:00:04]} 65. Kxb4 {[%emt 0:00:06]} Kc7 {[%emt 0:00:27]} 66. Kc4 {[%emt 0:00:15]} Kc6 {[%emt 0:00:05]} 67. Kb4 {[%emt 0:00:06]} Kc7 {[%emt 0:00:06]} 68. Kb5 {[%emt 0:00:03]} Kb7 {[%emt 0:00:04]} 69. Kc4 {[%emt 0:00:08]} Kc6 {[%emt 0:00:03]} 70. Kd4 {[%emt 0:00:15]} Kd6 {[%emt 0:00:04]} 71. Ke4 {[%emt 0:05:15]} 1/2-1/2

[Event "FIDE WCCC Open-12 2024"]
[Site "Montesilvano"]
[Date "2024.11.19"]
[Round "5.8"]
[White "Radnaev, Leo"]
[Black "Torres Rebolledo, Alvaro"]
[Result "1/2-1/2"]
[ECO "B13"]
[WhiteElo "1990"]
[BlackElo "2216"]
[Annotator "RC"]
[PlyCount "45"]
[EventDate "2024.11.18"]
[EventType "swiss"]
[EventCountry "ITA"]
[SourceTitle "playchess.com"]
[Source "ChessBase"]
[SourceQuality "1"]
[TimeControl "5400+30"]

1. e4 {[%emt 0:00:01]} c6 {[%emt 0:01:07]} 2. d4 {[%emt 0:00:22]} d5 {[%emt 0:00:04]} 3. exd5 {[%emt 0:00:06]} cxd5 {[%emt 0:00:05]} 4. Bd3 {[%emt 0:00:19]} Nf6 {[%emt 0:00:11]} 5. c3 {[%emt 0:00:39]} Bg4 {[%emt 0:00:20]} 6. Nf3 {[%emt 0:04:09]} Nc6 {[%emt 0:03:02]} 7. Bf4 {[%emt 0:04:39]} Qb6 {[%emt 0:05:19]} 8. Qb3 {[%emt 0:05:24]} Bxf3 {[%emt 0:01:38]} 9. Qxb6 {[%emt 0:07:39]} axb6 {[%emt 0:00:03]} 10. gxf3 {[%emt 0:00:04]} e6 {[%emt 0:03:32]} 11. Nd2 {[%emt 0:02:47]} Kd7 {[%emt 0:05:17]} 12. Bb5 {[%emt 0:12:18]} Nh5 {[%emt 0:04:22]} 13. Bg3 {[%emt 0:01:18]} Bd6 {[%emt 0:02:01]} 14. Nb3 {[%emt 0:11:47]} Bf4 {[%emt 0:11:43]} 15. a4 {[%emt 0:11:42]} Kc7 {[%emt 0:05:37]} 16. Nc1 {[%emt 0:03:40]} g5 {[%emt 0:04:09]} 17. Nd3 {[%emt 0:02:35]} Na7 {[%emt 0:08:01]} 18. Bxf4+ {[%emt 0:04:25]} gxf4 {[%emt 0:07:56]} 19. Kd2 {[%emt 0:02:19]} Rhg8 {[%emt 0:03:22]} 20. Rhg1 {[%emt 0:01:15]} Nxb5 {[%emt 0:00:17]} 21. axb5 {[%emt 0:00:34]} f6 {[%emt 0:09:54]} 22. Rxa8 {[%emt 0:14:09]} Rxg1 {[%emt 0:00:28]} 23. Re8 {[%emt 0:09:49]} 1/2-1/2

[Event "FIDE WCCC Open-12 2024"]
[Site "Montesilvano"]
[Date "2024.11.19"]
[Round "5.9"]
[White "Liu, Patrick"]
[Black "Qu, Haoming"]
[Result "1/2-1/2"]
[ECO "D96"]
[WhiteElo "2192"]
[BlackElo "1969"]
[Annotator "RC"]
[PlyCount "70"]
[EventDate "2024.11.18"]
[EventType "swiss"]
[EventCountry "ITA"]
[SourceTitle "playchess.com"]
[Source "ChessBase"]
[SourceQuality "1"]
[TimeControl "5400+30"]

1. d4 {[%emt 0:00:02]} d5 {[%emt 0:00:27]} 2. Nf3 {[%emt 0:00:08]} Nf6 {[%emt 0:00:07]} 3. c4 {[%emt 0:00:06]} c6 {[%emt 0:00:10]} 4. Qc2 {[%emt 0:00:24]} g6 {[%emt 0:00:10]} 5. Bf4 {[%emt 0:01:38]} dxc4 {[%emt 0:00:54]} 6. Qxc4 {[%emt 0:01:24]} Bg7 {[%emt 0:00:16]} 7. Nc3 {[%emt 0:03:57]} b5 {[%emt 0:01:28]} 8. Qb3 {[%emt 0:02:16]} Be6 {[%emt 0:03:48]} 9. Qc2 {[%emt 0:01:23]} b4 {[%emt 0:13:23]} 10. Na4 {[%emt 0:03:11]} Bf5 {[%emt 0:08:06]} 11. Qc4 {[%emt 0:03:06]} Be6 {[%emt 0:08:13]} 12. Qc2 {[%emt 0:19:30]} Bf5 {[%emt 0:59:28]} 13. Qc4 {[%emt 0:03:00]} Be6 {[%emt 0:00:00]} 14. Qc1 {[%emt 0:10:19]} Bd5 {[%emt 0:00:00]} 15. Ne5 {[%emt 0:07:46]} O-O {[%emt 0:00:00]} 16. f3 {[%emt 0:00:35]} Nh5 {[%emt 0:00:00]} 17. Be3 {[%emt 0:07:28]} f5 {[%emt 0:00:00]} 18. Nc5 {[%emt 0:05:18]} f4 {[%emt 0:00:00]} 19. Bf2 {[%emt 0:01:55]} Bxe5 {[%emt 0:00:00]} 20. dxe5 {[%emt 0:00:27]} Nd7 {[%emt 0:00:00]} 21. e4 {[%emt 0:13:26]} fxe3 {[%emt 0:00:00]} 22. Bxe3 {[%emt 0:00:34]} Nxc5 {[%emt 0:00:00]} 23. Qxc5 {[%emt 0:00:47]} Qc7 {[%emt 0:00:00]} 24. Qxb4 {[%emt 0:06:58]} Qxe5 {[%emt 0:00:00]} 25. Qd4 {[%emt 0:00:23]} Qxd4 {[%emt 0:00:00]} 26. Bxd4 {[%emt 0:00:01]} e5 {[%emt 0:00:00]} 27. Be3 {[%emt 0:02:06]} Rae8 {[%emt 0:00:09]} 28. O-O-O {[%emt 0:00:47]} e4 {[%emt 0:00:53]} 29. fxe4 {[%emt 0:01:00]} Rxe4 {[%emt 0:00:07]} 30. Re1 {[%emt 0:02:28]} Nf4 {[%emt 0:02:57]} 31. b3 {[%emt 0:01:11]} a5 {[%emt 0:02:19]} 32. Rg1 {[%emt 0:00:52]} Rfe8 {[%emt 0:02:09]} 33. Kd2 {[%emt 0:00:26]} Rd8 {[%emt 0:00:54]} 34. Kc2 {[%emt 0:00:47]} Rde8 {[%emt 0:00:12]} 35. Kd2 {[%emt 0:00:01]} Rd8 {[%emt 0:00:18]} 1/2-1/2

[Event "FIDE WCCC Open-12 2024"]
[Site "Montesilvano"]
[Date "2024.11.19"]
[Round "5.10"]
[White "Diachek, Andrii"]
[Black "Gao, Arthur"]
[Result "1-0"]
[ECO "B33"]
[WhiteElo "2162"]
[BlackElo "1979"]
[Annotator "RC"]
[PlyCount "69"]
[EventDate "2024.11.18"]
[EventType "swiss"]
[EventCountry "ITA"]
[SourceTitle "playchess.com"]
[Source "ChessBase"]
[SourceQuality "1"]
[TimeControl "5400+30"]

1. e4 {[%emt 0:00:03]} c5 {[%emt 0:00:04]} 2. Nf3 {[%emt 0:00:06]} Nc6 {[%emt 0:00:05]} 3. d4 {[%emt 0:00:04]} cxd4 {[%emt 0:00:11]} 4. Nxd4 {[%emt 0:00:03]} Nf6 {[%emt 0:00:09]} 5. Nc3 {[%emt 0:00:06]} e5 {[%emt 0:00:04]} 6. Nf3 {[%emt 0:00:23]} Bb4 {[%emt 0:03:22]} 7. Bc4 {[%emt 0:00:14]} O-O {[%emt 0:06:26]} 8. O-O {[%emt 0:02:13]} Bxc3 {[%emt 0:18:51]} 9. bxc3 {[%emt 0:00:41]} Nxe4 {[%emt 0:00:32]} 10. Ba3 {[%emt 0:00:36]} d6 {[%emt 0:05:02]} 11. Re1 {[%emt 0:04:27]} Bf5 {[%emt 0:14:02]} 12. Qd3 {[%emt 0:04:12]} Ne7 {[%emt 0:12:16]} 13. Rxe4 {[%emt 0:13:13]} Bxe4 {[%emt 0:10:16]} 14. Qxe4 {[%emt 0:00:09]} Qc7 {[%emt 0:01:23]} 15. Bd3 {[%emt 0:11:25]} g6 {[%emt 0:04:32]} 16. Qc4 {[%emt 0:01:51]} Qd7 {[%emt 0:01:52]} 17. Qb4 {[%emt 0:04:24]} Rfd8 {[%emt 0:10:54]} 18. Nxe5 {[%emt 0:02:40]} a5 {[%emt 0:01:26]} 19. Qh4 {[%emt 0:01:37]} Qc7 {[%emt 0:04:12]} 20. Qc4 {[%emt 0:05:16]} Nc6 {[%emt 0:02:28]} 21. Ng4 {[%emt 0:04:17]} Qe7 {[%emt 0:01:12]} 22. Qf4 {[%emt 0:02:12]} h5 {[%emt 0:01:02]} 23. Nf6+ {[%emt 0:03:04]} Kg7 {[%emt 0:00:03]} 24. Nd5 {[%emt 0:01:31]} Qe5 {[%emt 0:00:12]} 25. Qxe5+ {[%emt 0:02:48]} dxe5 {[%emt 0:00:53]} 26. Nb6 {[%emt 0:03:10]} Rab8 {[%emt 0:00:10]} 27. c4 {[%emt 0:01:16]} f5 {[%emt 0:00:26]} 28. f3 {[%emt 0:04:36]} Re8 {[%emt 0:01:15]} 29. Re1 {[%emt 0:04:48]} Rbd8 {[%emt 0:00:45]} 30. Nd5 {[%emt 0:02:00]} Rd7 {[%emt 0:00:36]} 31. Bb2 {[%emt 0:00:46]} Kf7 {[%emt 0:00:20]} 32. Nb6 {[%emt 0:02:02]} Rde7 {[%emt 0:00:23]} 33. c5 {[%emt 0:02:26]} Rd8 {[%emt 0:00:44]} 34. Bc1 {[%emt 0:05:43]} Rd4 {[%emt 0:00:28]} 35. Be3 {[%emt 0:00:27]} 1-0

[Event "FIDE WCCC Open-12 2024"]
[Site "Montesilvano"]
[Date "2024.11.19"]
[Round "5.11"]
[White "Luger, Sam"]
[Black "Matejka, Simon"]
[Result "1-0"]
[ECO "A62"]
[WhiteElo "2094"]
[BlackElo "1924"]
[Annotator "NA RC"]
[PlyCount "61"]
[EventDate "2024.11.18"]
[EventType "swiss"]
[EventCountry "ITA"]
[SourceTitle "playchess.com"]
[Source "ChessBase"]
[SourceQuality "1"]
[TimeControl "5400+30"]

1. d4 {[%emt 0:00:25]} Nf6 {[%emt 0:00:26]} 2. c4 {[%emt 0:00:23]} e6 {[%emt 0:00:32]} 3. g3 {[%emt 0:00:05]} c5 {[%emt 0:00:32]} 4. d5 {[%emt 0:00:32]} exd5 {[%emt 0:00:19]} 5. cxd5 {[%emt 0:00:04]} d6 {[%emt 0:00:29]} 6. Nc3 {[%emt 0:00:47]} g6 {[%emt 0:00:36]} 7. Bg2 {[%emt 0:00:08]} Bg7 {[%emt 0:00:09]} 8. Nf3 {[%emt 0:00:11]} O-O {[%emt 0:00:55]} 9. O-O {[%emt 0:00:47]} Re8 {[%emt 0:00:24]} 10. Bf4 {[%emt 0:00:10]} Ne4 {[%emt 0:00:29]} 11. Nxe4 {[%emt 0:04:07]} Rxe4 {[%emt 0:00:16]} 12. Nd2 {[%emt 0:02:03]} Rxf4 {[%emt 0:00:51]} 13. gxf4 {[%emt 0:00:42]} Bxb2 {[%emt 0:00:09]} 14. Rb1 {[%emt 0:01:33]} Bg7 {[%emt 0:00:11]} 15. Nc4 {[%emt 0:06:03]} Na6 {[%emt 0:00:37]} 16. Qb3 {[%emt 0:23:50]} Rb8 {[%emt 0:02:30]} 17. a4 {[%emt 0:07:09]} Bh6 {[%emt 0:04:35]} 18. Qg3 {[%emt 0:13:24]} f5 {[%emt 0:14:12]} 19. e4 {[%emt 0:12:33]} Nb4 {[%emt 0:02:27]} 20. Rbd1 {[%emt 0:13:03]} fxe4 {[%emt 0:04:34]} 21. Bxe4 {[%emt 0:04:10]} Kh8 {[%emt 0:10:01]} 22. f5 {[%emt 0:02:28]} Bxf5 {[%emt 0:02:37]} 23. Bxf5 {[%emt 0:00:55]} gxf5 {[%emt 0:00:03]} 24. Nxd6 {[%emt 0:00:19]} Qf6 {[%emt 0:03:24]} 25. Nf7+ {[%emt 0:00:30]} Qxf7 {[%emt 0:00:03]} 26. Qxb8+ {[%emt 0:00:06]} Kg7 {[%emt 0:00:10]} 27. Kh1 {[%emt 0:01:03]} Qe7 {[%emt 0:00:32]} 28. Rg1+ {[%emt 0:02:09]} Bg5 {[%emt 0:01:48]} 29. Rde1 {[%emt 0:00:26]} Qd7 {[%emt 0:01:16]} 30. Rxg5+ {[%emt 0:00:39]} Kf6 {[%emt 0:00:07]} 31. Rg2 {[%emt 0:00:16]} 1-0

[Event "FIDE WCCC Open-12 2024"]
[Site "Montesilvano"]
[Date "2024.11.19"]
[Round "5.12"]
[White "Gao, Heye"]
[Black "Ivancic, Ivan"]
[Result "1-0"]
[ECO "B33"]
[WhiteElo "1933"]
[BlackElo "2091"]
[Annotator "RC"]
[PlyCount "127"]
[EventDate "2024.11.18"]
[EventType "swiss"]
[EventCountry "ITA"]
[SourceTitle "playchess.com"]
[Source "ChessBase"]
[SourceQuality "1"]
[TimeControl "5400+30"]

1. e4 {[%emt 0:00:16]} c5 {[%emt 0:00:11]} 2. Nf3 {[%emt 0:00:42]} Nc6 {[%emt 0:00:11]} 3. d4 {[%emt 0:00:40]} cxd4 {[%emt 0:00:09]} 4. Nxd4 {[%emt 0:00:38]} Nf6 {[%emt 0:00:15]} 5. Nc3 {[%emt 0:00:40]} e5 {[%emt 0:01:28]} 6. Nde2 {[%emt 0:02:11]} Bc5 {[%emt 0:15:26]} 7. Ng3 {[%emt 0:01:03]} d6 {[%emt 0:02:48]} 8. Be2 {[%emt 0:01:59]} O-O {[%emt 0:05:00]} 9. O-O {[%emt 0:01:39]} a6 {[%emt 0:00:28]} 10. Bg5 {[%emt 0:05:29]} h6 {[%emt 0:01:55]} 11. Bxf6 {[%emt 0:03:00]} Qxf6 {[%emt 0:00:14]} 12. Nd5 {[%emt 0:02:29]} Qg5 {[%emt 0:02:58]} 13. c3 {[%emt 0:04:02]} Rb8 {[%emt 0:11:53]} 14. b4 {[%emt 0:06:16]} Ba7 {[%emt 0:00:08]} 15. a4 {[%emt 0:02:37]} Ne7 {[%emt 0:01:05]} 16. Bc4 {[%emt 0:04:46]} Ng6 {[%emt 0:06:08]} 17. Qd3 {[%emt 0:05:34]} Be6 {[%emt 0:09:02]} 18. Ba2 {[%emt 0:06:46]} Bxd5 {[%emt 0:10:45]} 19. Qxd5 {[%emt 0:03:28]} Nf4 {[%emt 0:02:21]} 20. Qd1 {[%emt 0:05:37]} h5 {[%emt 0:08:20]} 21. Qf3 {[%emt 0:01:52]} h4 {[%emt 0:00:18]} 22. Ne2 {[%emt 0:03:29]} Ng6 {[%emt 0:05:51]} 23. Rad1 {[%emt 0:03:27]} Rbd8 {[%emt 0:00:17]} 24. Rd3 {[%emt 0:05:00]} Kh8 {[%emt 0:03:38]} 25. Qh3 {[%emt 0:03:53]} f5 {[%emt 0:03:14]} 26. exf5 {[%emt 0:01:14]} Qxf5 {[%emt 0:01:31]} 27. Qxf5 {[%emt 0:02:03]} Rxf5 {[%emt 0:00:01]} 28. Bd5 {[%emt 0:01:17]} Rdf8 {[%emt 0:01:11]} 29. Rf3 {[%emt 0:00:18]} Rxf3 {[%emt 0:01:40]} 30. Bxf3 {[%emt 0:01:09]} Rf7 {[%emt 0:01:17]} 31. Bd5 {[%emt 0:03:34]} Rc7 {[%emt 0:00:21]} 32. Rd1 {[%emt 0:00:41]} Ne7 {[%emt 0:00:37]} 33. Be6 {[%emt 0:00:45]} d5 {[%emt 0:03:57]} 34. Kf1 {[%emt 0:02:02]} d4 {[%emt 0:00:55]} 35. cxd4 {[%emt 0:01:45]} exd4 {[%emt 0:00:02]} 36. Nxd4 {[%emt 0:00:43]} Nc6 {[%emt 0:01:26]} 37. Nxc6 {[%emt 0:00:42]} Rxc6 {[%emt 0:00:14]} 38. Bf5 {[%emt 0:00:38]} g6 {[%emt 0:00:35]} 39. Rd8+ {[%emt 0:02:04]} Kg7 {[%emt 0:00:22]} 40. Rd7+ {[%emt 0:00:17]} Kf6 {[%emt 0:00:42]} 41. Rxb7 {[%emt 0:00:56]} Rc1+ {[%emt 0:01:18]} 42. Ke2 {[%emt 0:00:07]} Bxf2 {[%emt 0:00:25]} 43. Bxg6 {[%emt 0:00:38]} Bg1 {[%emt 0:00:27]} 44. Bd3 {[%emt 0:00:23]} Ra1 {[%emt 0:00:51]} 45. a5 {[%emt 0:00:17]} Ra2+ {[%emt 0:00:33]} 46. Kf1 {[%emt 0:00:35]} Bd4 {[%emt 0:00:27]} 47. Bxa6 {[%emt 0:06:59]} Rf2+ {[%emt 0:00:08]} 48. Ke1 {[%emt 0:00:02]} Rxg2 {[%emt 0:01:27]} 49. Bd3 {[%emt 0:00:35]} Bc3+ {[%emt 0:00:00]} 50. Kf1 {[%emt 0:00:25]} Rb2 {[%emt 0:00:26]} 51. a6 {[%emt 0:00:44]} Bd4 {[%emt 0:00:25]} 52. b5 {[%emt 0:00:45]} Rxh2 {[%emt 0:00:36]} 53. b6 {[%emt 0:01:58]} Rf2+ {[%emt 0:00:19]} 54. Ke1 {[%emt 0:00:20]} Ra2 {[%emt 0:00:41]} 55. Rb8 {[%emt 0:00:37]} h3 {[%emt 0:00:30]} 56. a7 {[%emt 0:01:07]} h2 {[%emt 0:00:27]} 57. Be4 {[%emt 0:00:08]} Ra1+ {[%emt 0:00:34]} 58. Ke2 {[%emt 0:00:30]} Ra2+ {[%emt 0:00:09]} 59. Kd3 {[%emt 0:00:22]} Ra3+ {[%emt 0:00:17]} 60. Kxd4 {[%emt 0:00:25]} Ra4+ {[%emt 0:00:16]} 61. Kd3 {[%emt 0:00:06]} Rxe4 {[%emt 0:00:31]} 62. Rh8 {[%emt 0:00:22]} Ra4 {[%emt 0:01:02]} 63. Rxh2 {[%emt 0:00:05]} Ra3+ {[%emt 0:01:17]} 64. Ke4 {[%emt 0:07:19]} 1-0

[Event "FIDE WCCC Open-12 2024"]
[Site "Montesilvano"]
[Date "2024.11.19"]
[Round "5.13"]
[White "Zhandos, Akarys"]
[Black "Birmenko, Nikolay"]
[Result "0-1"]
[ECO "C25"]
[WhiteElo "1932"]
[BlackElo "2084"]
[Annotator "RC"]
[PlyCount "92"]
[EventDate "2024.11.18"]
[EventType "swiss"]
[EventCountry "ITA"]
[SourceTitle "playchess.com"]
[Source "ChessBase"]
[SourceQuality "1"]
[TimeControl "5400+30"]

1. e4 {[%emt 0:00:12]} e5 {[%emt 0:00:06]} 2. Nc3 {[%emt 0:01:27]} Nc6 {[%emt 0:00:23]} 3. g3 {[%emt 0:00:26]} h5 {[%emt 0:04:45]} 4. h4 {[%emt 0:05:13]} Bc5 {[%emt 0:03:01]} 5. Bg2 {[%emt 0:02:38]} a6 {[%emt 0:07:01]} 6. Nge2 {[%emt 0:01:50]} d6 {[%emt 0:03:38]} 7. d3 {[%emt 0:03:30]} Bg4 {[%emt 0:03:09]} 8. Be3 {[%emt 0:01:45]} Bxe3 {[%emt 0:03:01]} 9. fxe3 {[%emt 0:01:29]} Nge7 {[%emt 0:01:56]} 10. Qd2 {[%emt 0:01:33]} Qd7 {[%emt 0:00:15]} 11. O-O-O {[%emt 0:00:13]} O-O {[%emt 0:02:43]} 12. Rdf1 {[%emt 0:01:30]} b5 {[%emt 0:01:48]} 13. Nd1 {[%emt 0:02:31]} a5 {[%emt 0:05:51]} 14. Bf3 {[%emt 0:20:17]} a4 {[%emt 0:10:38]} 15. Bxg4 {[%emt 0:02:11]} Qxg4 {[%emt 0:00:20]} 16. Nf2 {[%emt 0:02:12]} Qe6 {[%emt 0:01:29]} 17. Kb1 {[%emt 0:03:24]} b4 {[%emt 0:06:34]} 18. g4 {[%emt 0:00:36]} hxg4 {[%emt 0:05:52]} 19. Rhg1 {[%emt 0:02:30]} f5 {[%emt 0:05:44]} 20. exf5 {[%emt 0:02:40]} Rxf5 {[%emt 0:01:26]} 21. Ng3 {[%emt 0:08:01]} Rff8 {[%emt 0:05:01]} 22. Nge4 {[%emt 0:00:58]} a3 {[%emt 0:01:49]} 23. b3 {[%emt 0:00:38]} Nd5 {[%emt 0:01:21]} 24. Qe2 {[%emt 0:04:11]} Na7 {[%emt 0:02:55]} 25. Nxg4 {[%emt 0:09:51]} Nb5 {[%emt 0:00:49]} 26. Qg2 {[%emt 0:02:02]} Rxf1+ {[%emt 0:02:01]} 27. Rxf1 {[%emt 0:00:00]} Nbc3+ {[%emt 0:01:28]} 28. Ka1 {[%emt 0:00:25]} Rf8 {[%emt 0:04:58]} 29. Rg1 {[%emt 0:00:28]} Nxe4 {[%emt 0:00:38]} 30. Qxe4 {[%emt 0:01:04]} Kh8 {[%emt 0:00:39]} 31. h5 {[%emt 0:09:31]} Qf7 {[%emt 0:00:20]} 32. Nh2 {[%emt 0:00:01]} Qf2 {[%emt 0:03:53]} 33. Qg6 {[%emt 0:01:13]} Qf6 {[%emt 0:00:11]} 34. Qe4 {[%emt 0:01:26]} Qf2 {[%emt 0:02:36]} 35. Qg6 {[%emt 0:01:40]} Qf6 {[%emt 0:00:07]} 36. Qe4 {[%emt 0:00:03]} Nc3 {[%emt 0:00:49]} 37. Qg2 {[%emt 0:03:49]} e4 {[%emt 0:00:09]} 38. d4 {[%emt 0:00:01]} c5 {[%emt 0:02:28]} 39. h6 {[%emt 0:03:44]} gxh6 {[%emt 0:00:33]} 40. Rh1 {[%emt 0:00:11]} Qg5 {[%emt 0:01:23]} 41. Qd2 {[%emt 0:02:44]} cxd4 {[%emt 0:00:57]} 42. Qxd4+ {[%emt 0:00:28]} Qg7 {[%emt 0:00:59]} 43. Qxb4 {[%emt 0:00:52]} Nb5+ {[%emt 0:00:56]} 44. c3 {[%emt 0:00:05]} Qg2 {[%emt 0:00:30]} 45. Rb1 {[%emt 0:00:45]} Rf2 {[%emt 0:00:07]} 46. Qxa3 {[%emt 0:00:39]} Nxa3 {[%emt 0:00:05]} 0-1

[Event "FIDE WCCC Open-12 2024"]
[Site "Montesilvano"]
[Date "2024.11.19"]
[Round "5.14"]
[White "Petroff, Vlad"]
[Black "Sobirov, Afruzbek"]
[Result "1-0"]
[ECO "D37"]
[WhiteElo "2079"]
[BlackElo "1928"]
[Annotator "RC"]
[PlyCount "68"]
[EventDate "2024.11.18"]
[EventType "swiss"]
[EventCountry "ITA"]
[SourceTitle "playchess.com"]
[Source "ChessBase"]
[SourceQuality "1"]
[TimeControl "5400+30"]

1. d4 {[%emt 0:00:08]} Nf6 {[%emt 0:00:09]} 2. Nf3 {[%emt 0:00:12]} e6 {[%emt 0:00:08]} 3. c4 {[%emt 0:00:13]} d5 {[%emt 0:00:07]} 4. Nc3 {[%emt 0:00:13]} a6 {[%emt 0:00:06]} 5. cxd5 {[%emt 0:09:00]} exd5 {[%emt 0:00:09]} 6. Bg5 {[%emt 0:00:10]} c6 {[%emt 0:00:05]} 7. e3 {[%emt 0:00:34]} h6 {[%emt 0:00:08]} 8. Bf4 {[%emt 0:03:16]} Be7 {[%emt 0:03:03]} 9. h3 {[%emt 0:01:18]} Be6 {[%emt 0:01:05]} 10. Bd3 {[%emt 0:01:51]} Nbd7 {[%emt 0:00:31]} 11. O-O {[%emt 0:00:25]} O-O {[%emt 0:00:22]} 12. Rb1 {[%emt 0:05:33]} c5 {[%emt 0:07:04]} 13. dxc5 {[%emt 0:01:53]} Nxc5 {[%emt 0:00:13]} 14. Nd4 {[%emt 0:05:02]} Nxd3 {[%emt 0:10:34]} 15. Qxd3 {[%emt 0:00:02]} Qd7 {[%emt 0:01:47]} 16. Rfd1 {[%emt 0:01:48]} b5 {[%emt 0:01:23]} 17. b4 {[%emt 0:00:49]} Rac8 {[%emt 0:01:07]} 18. a3 {[%emt 0:04:41]} Rc4 {[%emt 0:02:20]} 19. Rbc1 {[%emt 0:02:30]} Rfc8 {[%emt 0:02:16]} 20. Nb3 {[%emt 0:04:53]} Bf5 {[%emt 0:15:05]} 21. Qd2 {[%emt 0:05:54]} Kh7 {[%emt 0:00:52]} 22. Qb2 {[%emt 0:07:05]} g5 {[%emt 0:16:00]} 23. Bg3 {[%emt 0:01:46]} h5 {[%emt 0:00:40]} 24. Na5 {[%emt 0:01:55]} d4 {[%emt 0:01:33]} 25. Nxc4 {[%emt 0:04:09]} dxc3 {[%emt 0:03:00]} 26. Qe2 {[%emt 0:01:14]} Qe6 {[%emt 0:04:54]} 27. Nd6 {[%emt 0:01:07]} Bxd6 {[%emt 0:00:26]} 28. Rxd6 {[%emt 0:00:15]} Qe7 {[%emt 0:00:12]} 29. Qf3 {[%emt 0:02:26]} Kg6 {[%emt 0:02:33]} 30. Qd1 {[%emt 0:08:38]} h4 {[%emt 0:01:23]} 31. Bh2 {[%emt 0:00:11]} c2 {[%emt 0:05:16]} 32. Qd4 {[%emt 0:02:21]} Rc4 {[%emt 0:00:33]} 33. Qd2 {[%emt 0:01:51]} Be4 {[%emt 0:00:30]} 34. Be5 {[%emt 0:00:30]} Rc6 {[%emt 0:00:30]} 1-0